[Event "GER-ch Youth ODJM 2019"]
[Site "Willingen"]
[Date "2019.06.09"]
[Round "2.15"]
[White "Schrepp, Florian"]
[Black "Garbuz, Vitaliy"]
[Result "1/2-1/2"]
[ECO "C49"]
[WhiteElo "1922"]
[BlackElo "2051"]
[Annotator "NA"]
[PlyCount "20"]
[EventDate "2019.06.07"]
[EventType "swiss"]
[EventRounds "9"]
[EventCountry "GER"]
[SourceTitle "playchess.com"]
[Source "ChessBase"]
[SourceQuality "1"]
[TimeControl "40/5400+30:1800+30"]

1. e4 {[%emt 0:00:00]} Nf6 {[%emt 0:00:00]} 2. Nc3 {[%emt 0:01:10]} e5 {[%emt 0:02:53]} 3. Nf3 {[%emt 0:00:37]} Nc6 {[%emt 0:00:11]} 4. Bb5 {[%emt 0:02:32]} Bb4 {[%emt 0:12:52]} 5. O-O {[%emt 0:10:29]} O-O {[%emt 0:02:30]} 6. d3 {[%emt 0:05:23]} Nd4 {[%emt 0:02:45]} 7. Nxd4 {[%emt 0:03:47]} exd4 {[%emt 0:02:22]} 8. Ne2 {[%emt 0:00:40]} c6 {[%emt 0:02:15]} 9. Ba4 {[%emt 0:10:01]} d5 {[%emt 0:07:36]} 10. e5 {[%emt 0:06:53]} Nd7 {[%emt 0:01:27] normal} 1/2-1/2

[Event "GER-ch Youth ODJM 2019"]
[Site "Willingen"]
[Date "2019.06.09"]
[Round "2.16"]
[White "von Estorff, Jacob"]
[Black "Behringer, Tom"]
[Result "1/2-1/2"]
[ECO "C45"]
[WhiteElo "2041"]
[BlackElo "1766"]
[Annotator "NA"]
[PlyCount "26"]
[EventDate "2019.06.07"]
[EventType "swiss"]
[EventRounds "9"]
[EventCountry "GER"]
[SourceTitle "playchess.com"]
[Source "ChessBase"]
[SourceQuality "1"]
[TimeControl "40/5400+30:1800+30"]

1. e4 {[%emt 0:00:00]} e5 {[%emt 0:00:00]} 2. Nf3 {[%emt 0:00:10]} Nc6 {[%emt 0:00:00]} 3. d4 {[%emt 0:00:23]} exd4 {[%emt 0:00:03]} 4. Nxd4 {[%emt 0:00:04]} Bc5 {[%emt 0:00:48]} 5. Be3 {[%emt 0:00:52]} Qf6 {[%emt 0:00:10]} 6. c3 {[%emt 0:00:05]} Nge7 {[%emt 0:00:06]} 7. Bc4 {[%emt 0:00:39]} Ne5 {[%emt 0:00:06]} 8. Be2 {[%emt 0:01:18]} Qg6 {[%emt 0:06:21]} 9. O-O {[%emt 0:03:39]} d6 {[%emt 0:06:41]} 10. Kh1 {[%emt 0:06:36]} O-O {[%emt 0:01:23]} 11. Nd2 {[%emt 0:04:00]} d5 {[%emt 0:05:44]} 12. Nf5 {[%emt 0:06:47]} Nxf5 {[%emt 0:20:56]} 13. Bxc5 {[%emt 0:00:47]} Nd6 {[%emt 0:07:31] normal} 1/2-1/2

[Event "GER-ch Youth ODJM 2019"]
[Site "Willingen"]
[Date "2019.06.10"]
[Round "3.1"]
[White "Lauterbach, Kolja"]
[Black "Petri, Ben-Luca"]
[Result "1-0"]
[ECO "C54"]
[WhiteElo "1662"]
[BlackElo "1895"]
[Annotator "NA"]
[PlyCount "69"]
[EventDate "2019.06.07"]
[EventType "swiss"]
[EventRounds "9"]
[EventCountry "GER"]
[SourceTitle "playchess.com"]
[Source "ChessBase"]
[SourceQuality "1"]
[TimeControl "40/5400+30:1800+30"]

1. e4 {[%emt 0:00:00]} e5 {[%emt 0:00:05]} 2. Nf3 {[%emt 0:00:00]} Nc6 {[%emt 0:00:19]} 3. d4 {[%emt 0:00:00]} exd4 {[%emt 0:00:15]} 4. Bc4 {[%emt 0:00:00]} Bc5 {[%emt 0:00:09]} 5. c3 {[%emt 0:00:25]} Nf6 {[%emt 0:00:34]} 6. e5 {[%emt 0:00:09]} d5 {[%emt 0:01:18]} 7. Bb5 {[%emt 0:00:19]} Ne4 {[%emt 0:00:02]} 8. cxd4 {[%emt 0:00:09]} Bb6 {[%emt 0:01:25]} 9. Nc3 {[%emt 0:00:39]} O-O {[%emt 0:02:49]} 10. Be3 {[%emt 0:00:35]} Bf5 {[%emt 0:02:36]} 11. h3 {[%emt 0:03:40]} Ne7 {[%emt 0:05:32]} 12. O-O {[%emt 0:04:03]} c6 {[%emt 0:04:03]} 13. Be2 {[%emt 0:02:14]} Nxc3 {[%emt 0:06:24]} 14. bxc3 {[%emt 0:02:06]} Ng6 {[%emt 0:01:19]} 15. Nh2 {[%emt 0:05:10]} f6 {[%emt 0:03:41]} 16. f4 {[%emt 0:01:32]} fxe5 {[%emt 0:00:07]} 17. g4 {[%emt 0:11:25]} Be4 {[%emt 0:01:12]} 18. f5 {[%emt 0:01:11]} Qh4 {[%emt 0:03:33]} 19. Bf3 {[%emt 0:02:18]} Bxf3 {[%emt 0:02:52]} 20. Qxf3 {[%emt 0:07:31]} e4 {[%emt 0:02:12]} 21. Qg2 {[%emt 0:01:53]} Nh8 {[%emt 0:01:06]} 22. g5 {[%emt 0:08:16]} Qh5 {[%emt 0:03:27]} 23. Ng4 {[%emt 0:03:14]} Bd8 {[%emt 0:06:04]} 24. f6 {[%emt 0:10:28]} Nf7 {[%emt 0:02:17]} 25. Rf5 {[%emt 0:06:13]} g6 {[%emt 0:02:05]} 26. Re5 {[%emt 0:01:33]} Bc7 {[%emt 0:03:19]} 27. Re7 {[%emt 0:02:39]} Bd6 {[%emt 0:00:39]} 28. Rf1 {[%emt 0:12:29]} Nxg5 {[%emt 0:02:48]} 29. Nh6+ {[%emt 0:01:47]} Qxh6 {[%emt 0:00:21]} 30. Bxg5 {[%emt 0:00:18]} Qh5 {[%emt 0:00:32]} 31. f7+ {[%emt 0:01:14]} Kg7 {[%emt 0:00:43]} 32. Bf6+ {[%emt 0:00:26]} Kh6 {[%emt 0:00:02]} 33. Qd2+ {[%emt 0:00:15]} g5 {[%emt 0:00:14]} 34. Re6 {[%emt 0:00:47]} Qh4 {[%emt 0:06:40]} 35. Bxg5+ {[%emt 0:00:35] normal} 1-0

[Event "GER-ch Youth ODJM 2019"]
[Site "Willingen"]
[Date "2019.06.10"]
[Round "3.2"]
[White "Savchenko, Daniel"]
[Black "Schimnatkowski, Lukas"]
[Result "1-0"]
[ECO "B75"]
[WhiteElo "2120"]
[BlackElo "2139"]
[Annotator "NA"]
[PlyCount "37"]
[EventDate "2019.06.07"]
[EventType "swiss"]
[EventRounds "9"]
[EventCountry "GER"]
[SourceTitle "playchess.com"]
[Source "ChessBase"]
[SourceQuality "1"]
[TimeControl "40/5400+30:1800+30"]

1. e4 {[%emt 0:00:00]} c5 {[%emt 0:00:00]} 2. Nf3 {[%emt 0:00:00]} d6 {[%emt 0:00:00]} 3. d4 {[%emt 0:00:00]} cxd4 {[%emt 0:00:00]} 4. Nxd4 {[%emt 0:00:00]} Nf6 {[%emt 0:00:00]} 5. Nc3 {[%emt 0:00:11]} g6 {[%emt 0:00:00]} 6. f3 {[%emt 0:02:41]} Bg7 {[%emt 0:00:04]} 7. Be3 {[%emt 0:00:05]} Nbd7 {[%emt 0:00:04]} 8. Qd2 {[%emt 0:00:11]} a6 {[%emt 0:00:04]} 9. O-O-O {[%emt 0:00:22]} h5 {[%emt 0:00:10]} 10. Bc4 {[%emt 0:09:09]} b5 {[%emt 0:00:37]} 11. Bb3 {[%emt 0:01:28]} Bb7 {[%emt 0:00:26]} 12. h3 {[%emt 0:02:44]} Nc5 {[%emt 0:10:51]} 13. g4 {[%emt 0:01:53]} Qa5 {[%emt 0:09:16]} 14. Kb1 {[%emt 0:09:01]} Rc8 {[%emt 0:07:32]} 15. Qf2 {[%emt 0:07:45]} b4 {[%emt 0:23:41]} 16. Nd5 {[%emt 0:04:32]} e6 {[%emt 0:08:50]} 17. Nxf6+ {[%emt 0:05:27]} Bxf6 {[%emt 0:00:05]} 18. Ne2 {[%emt 0:06:41]} Nxb3 {[%emt 0:05:09]} 19. axb3 {[%emt 0:00:27] normal} 1-0

[Event "GER-ch Youth ODJM 2019"]
[Site "Willingen"]
[Date "2019.06.10"]
[Round "3.2"]
[White "Astner, Sebastian"]
[Black "Cheredzhiyska, Iva"]
[Result "1-0"]
[ECO "C55"]
[WhiteElo "1870"]
[BlackElo "1581"]
[Annotator "NA"]
[PlyCount "47"]
[EventDate "2019.06.07"]
[EventType "swiss"]
[EventRounds "9"]
[EventCountry "GER"]
[SourceTitle "playchess.com"]
[Source "ChessBase"]
[SourceQuality "1"]
[TimeControl "40/5400+30:1800+30"]

1. e4 {[%emt 0:00:00]} e5 {[%emt 0:00:00]} 2. Nf3 {[%emt 0:00:00]} Nc6 {[%emt 0:00:00]} 3. d4 {[%emt 0:00:00]} exd4 {[%emt 0:00:00]} 4. Bc4 {[%emt 0:00:00]} Nf6 {[%emt 0:00:00]} 5. e5 {[%emt 0:00:00]} Ng4 {[%emt 0:00:29]} 6. Bxf7+ {[%emt 0:00:26]} Kxf7 {[%emt 0:00:07]} 7. Ng5+ {[%emt 0:00:03]} Kg8 {[%emt 0:00:07]} 8. Qxg4 {[%emt 0:00:08]} h6 {[%emt 0:00:12]} 9. Nf3 {[%emt 0:00:31]} d6 {[%emt 0:00:19]} 10. Qe4 {[%emt 0:01:24]} dxe5 {[%emt 0:03:42]} 11. O-O {[%emt 0:01:30]} Qf6 {[%emt 0:06:36]} 12. Nbd2 {[%emt 0:05:23]} Bf5 {[%emt 0:06:13]} 13. Qd5+ {[%emt 0:01:09]} Kh7 {[%emt 0:03:54]} 14. Ne4 {[%emt 0:01:05]} Qe6 {[%emt 0:01:28]} 15. Neg5+ {[%emt 0:00:09]} hxg5 {[%emt 0:04:00]} 16. Nxg5+ {[%emt 0:00:05]} Kg8 {[%emt 0:00:01]} 17. Nxe6 {[%emt 0:00:13]} Bxe6 {[%emt 0:01:09]} 18. Qxe6+ {[%emt 0:00:04]} Kh7 {[%emt 0:00:05]} 19. Bg5 {[%emt 0:01:05]} Bd6 {[%emt 0:00:56]} 20. Qf5+ {[%emt 0:00:55]} Kg8 {[%emt 0:00:41]} 21. f4 {[%emt 0:01:32]} Rf8 {[%emt 0:03:44]} 22. Qe6+ {[%emt 0:00:14]} Kh7 {[%emt 0:00:02]} 23. Rf3 {[%emt 0:00:14]} g6 {[%emt 0:02:06]} 24. Bf6 {[%emt 0:00:17] normal} 1-0

[Event "GER-ch Youth ODJM 2019"]
[Site "Willingen"]
[Date "2019.06.10"]
[Round "3.3"]
[White "Welker, Alexandra"]
[Black "Fröhlich, Niklas"]
[Result "1/2-1/2"]
[ECO "B93"]
[WhiteElo "1342"]
[BlackElo "1261"]
[Annotator "NA"]
[PlyCount "69"]
[EventDate "2019.06.07"]
[EventType "swiss"]
[EventRounds "9"]
[EventCountry "GER"]
[SourceTitle "playchess.com"]
[Source "ChessBase"]
[SourceQuality "1"]
[TimeControl "40/5400+30:1800+30"]

1. e4 {[%emt 0:00:00]} c5 {[%emt 0:00:00]} 2. Nf3 {[%emt 0:00:00]} d6 {[%emt 0:00:00]} 3. Nc3 {[%emt 0:00:17]} Nf6 {[%emt 0:00:02]} 4. d4 {[%emt 0:00:23]} cxd4 {[%emt 0:00:08]} 5. Nxd4 {[%emt 0:00:04]} a6 {[%emt 0:00:11]} 6. f4 {[%emt 0:01:25]} e5 {[%emt 0:01:02]} 7. Nf3 {[%emt 0:00:42]} Nbd7 {[%emt 0:01:05]} 8. Be3 {[%emt 0:02:16]} Ng4 {[%emt 0:01:55]} 9. Qd2 {[%emt 0:00:49]} Nxe3 {[%emt 0:00:42]} 10. Qxe3 {[%emt 0:00:10]} Be7 {[%emt 0:00:59]} 11. O-O-O {[%emt 0:01:01]} b5 {[%emt 0:00:40]} 12. Nd5 {[%emt 0:01:03]} Bb7 {[%emt 0:00:33]} 13. Bd3 {[%emt 0:06:51]} Bxd5 {[%emt 0:00:38]} 14. exd5 {[%emt 0:00:08]} Qa5 {[%emt 0:01:06]} 15. fxe5 {[%emt 0:01:51]} O-O {[%emt 0:02:55]} 16. exd6 {[%emt 0:02:34]} Bxd6 {[%emt 0:01:17]} 17. Kb1 {[%emt 0:04:24]} Bc5 {[%emt 0:04:20]} 18. Qd2 {[%emt 0:01:59]} Qb6 {[%emt 0:01:45]} 19. Rhe1 {[%emt 0:06:33]} Nf6 {[%emt 0:01:35]} 20. Be4 {[%emt 0:03:23]} Ng4 {[%emt 0:03:04]} 21. Nd4 {[%emt 0:03:42]} a5 {[%emt 0:04:51]} 22. h3 {[%emt 0:03:13]} Nf6 {[%emt 0:00:20]} 23. Nb3 {[%emt 0:00:59]} Bd6 {[%emt 0:02:11]} 24. Qd4 {[%emt 0:00:51]} Qd8 {[%emt 0:02:36]} 25. Nc5 {[%emt 0:02:12]} Rc8 {[%emt 0:02:19]} 26. Nb7 {[%emt 0:00:48]} Qc7 {[%emt 0:03:00]} 27. Nxd6 {[%emt 0:00:19]} Qxd6 {[%emt 0:00:17]} 28. b3 {[%emt 0:02:45]} Rfe8 {[%emt 0:02:10]} 29. Bf3 {[%emt 0:02:01]} a4 {[%emt 0:01:30]} 30. bxa4 {[%emt 0:04:22]} bxa4 {[%emt 0:01:41]} 31. Rxe8+ {[%emt 0:00:24]} Rxe8 {[%emt 0:00:29]} 32. Qxa4 {[%emt 0:00:38]} Rb8+ {[%emt 0:00:59]} 33. Kc1 {[%emt 0:00:51]} Qb6 {[%emt 0:02:24]} 34. Qb3 {[%emt 0:00:30]} Qd6 {[%emt 0:04:00]} 35. Qa4 {normal} 1/2-1/2

[Event "GER-ch Youth ODJM 2019"]
[Site "Willingen"]
[Date "2019.06.10"]
[Round "3.4"]
[White "Lohr, Maximilian"]
[Black "Stelmaszyk, Nico"]
[Result "0-1"]
[ECO "B45"]
[WhiteElo "1981"]
[BlackElo "2174"]
[Annotator "NA"]
[PlyCount "82"]
[EventDate "2019.06.07"]
[EventType "swiss"]
[EventRounds "9"]
[EventCountry "GER"]
[SourceTitle "playchess.com"]
[Source "ChessBase"]
[SourceQuality "1"]
[TimeControl "40/5400+30:1800+30"]

1. e4 {[%emt 0:00:00]} c5 {[%emt 0:00:00]} 2. Nf3 {[%emt 0:00:00]} e6 {[%emt 0:00:00]} 3. d4 {[%emt 0:00:00]} cxd4 {[%emt 0:00:00]} 4. Nxd4 {[%emt 0:00:00]} Nc6 {[%emt 0:00:00]} 5. Nc3 {[%emt 0:00:06]} Nf6 {[%emt 0:00:07]} 6. Ndb5 {[%emt 0:00:09]} Bb4 {[%emt 0:01:13]} 7. Nd6+ {[%emt 0:02:29]} Ke7 {[%emt 0:00:08]} 8. Bf4 {[%emt 0:01:13]} e5 {[%emt 0:00:09]} 9. Nxc8+ {[%emt 0:07:32]} Rxc8 {[%emt 0:02:23]} 10. Bg5 {[%emt 0:00:08]} Nd4 {[%emt 0:05:58]} 11. Qd2 {[%emt 0:03:22]} Qa5 {[%emt 0:08:41]} 12. Nd5+ {[%emt 0:04:23]} Qxd5 {[%emt 0:01:50]} 13. Qxb4+ {[%emt 0:02:42]} Qd6 {[%emt 0:00:21]} 14. Bxf6+ {[%emt 0:01:44]} gxf6 {[%emt 0:00:07]} 15. Qxd6+ {[%emt 0:00:18]} Kxd6 {[%emt 0:00:06]} 16. Bd3 {[%emt 0:01:48]} Nxc2+ {[%emt 0:00:24]} 17. Bxc2 {[%emt 0:00:07]} Rxc2 {[%emt 0:00:05]} 18. Rd1+ {[%emt 0:01:15]} Ke6 {[%emt 0:00:37]} 19. Rd2 {[%emt 0:00:08]} Rc1+ {[%emt 0:00:26]} 20. Rd1 {[%emt 0:00:05]} Rhc8 {[%emt 0:00:08]} 21. O-O {[%emt 0:06:34]} R1c2 {[%emt 0:01:00]} 22. Rd3 {[%emt 0:02:25]} Rxb2 {[%emt 0:01:48]} 23. Rfd1 {[%emt 0:00:08]} Rc7 {[%emt 0:00:05]} 24. a3 {[%emt 0:00:27]} Rbc2 {[%emt 0:00:12]} 25. g4 {[%emt 0:02:26]} R2c3 {[%emt 0:02:36]} 26. Kg2 {[%emt 0:00:42]} Rxd3 {[%emt 0:00:35]} 27. Rxd3 {[%emt 0:00:09]} Rc4 {[%emt 0:00:58]} 28. Kf3 {[%emt 0:01:04]} b5 {[%emt 0:01:26]} 29. Ke3 {[%emt 0:01:29]} a5 {[%emt 0:01:36]} 30. Rd5 {[%emt 0:01:27]} Rc3+ {[%emt 0:00:56]} 31. Ke2 {[%emt 0:00:14]} Rb3 {[%emt 0:00:21]} 32. a4 {[%emt 0:00:29]} bxa4 {[%emt 0:00:17]} 33. Rxa5 {[%emt 0:00:07]} a3 {[%emt 0:00:34]} 34. h4 {[%emt 0:00:40]} Kd6 {[%emt 0:02:41]} 35. Kf1 {[%emt 0:04:33]} Kc6 {[%emt 0:02:08]} 36. Kg2 {[%emt 0:02:58]} Kb6 {[%emt 0:00:24]} 37. Ra8 {[%emt 0:00:14]} Kc5 {[%emt 0:00:23]} 38. Ra7 {[%emt 0:01:20]} Kb4 {[%emt 0:02:15]} 39. Rxd7 {[%emt 0:00:37]} a2 {[%emt 0:00:09]} 40. Rb7+ {[%emt 0:00:34]} Kc3 {[%emt 0:00:07]} 41. Ra7 {[%emt 0:30:02]} Kb2 {[%emt 0:30:09] normal} 0-1

[Event "GER-ch Youth ODJM 2019"]
[Site "Willingen"]
[Date "2019.06.10"]
[Round "3.4"]
[White "Diegel, Yannick"]
[Black "Wichert, Eddi"]
[Result "0-1"]
[ECO "A22"]
[WhiteElo "1411"]
[BlackElo "1702"]
[Annotator "NA"]
[PlyCount "34"]
[EventDate "2019.06.07"]
[EventType "swiss"]
[EventRounds "9"]
[EventCountry "GER"]
[SourceTitle "playchess.com"]
[Source "ChessBase"]
[SourceQuality "1"]
[TimeControl "40/5400+30:1800+30"]

1. c4 {[%emt 0:00:00]} e5 {[%emt 0:00:00]} 2. Nc3 {[%emt 0:00:00]} Nf6 {[%emt 0:00:00]} 3. d3 {[%emt 0:00:11]} d5 {[%emt 0:02:04]} 4. cxd5 {[%emt 0:00:37]} Nxd5 {[%emt 0:00:07]} 5. g3 {[%emt 0:00:25]} Nc6 {[%emt 0:00:11]} 6. Bg2 {[%emt 0:00:47]} Nb6 {[%emt 0:00:10]} 7. a3 {[%emt 0:01:25]} Be7 {[%emt 0:01:17]} 8. Nf3 {[%emt 0:00:38]} O-O {[%emt 0:01:09]} 9. O-O {[%emt 0:01:05]} Be6 {[%emt 0:00:18]} 10. b4 {[%emt 0:01:39]} f6 {[%emt 0:00:30]} 11. Ne4 {[%emt 0:06:25]} g5 {[%emt 0:09:54]} 12. Qd2 {[%emt 0:07:56]} g4 {[%emt 0:05:35]} 13. Nh4 {[%emt 0:00:52]} Nd4 {[%emt 0:02:03]} 14. Rb1 {[%emt 0:10:20]} c6 {[%emt 0:25:39]} 15. Nc5 {[%emt 0:10:59]} Bc8 {[%emt 0:10:49]} 16. e3 {[%emt 0:05:44]} Ne6 {[%emt 0:04:24]} 17. Qa2 {[%emt 0:03:05]} Nd5 {[%emt 0:06:02] normal} 0-1

[Event "GER-ch Youth ODJM 2019"]
[Site "Willingen"]
[Date "2019.06.10"]
[Round "3.5"]
[White "Arnold, Rubina"]
[Black "Apel, Linus"]
[Result "0-1"]
[ECO "B30"]
[WhiteElo "1329"]
[BlackElo "1410"]
[Annotator "NA"]
[PlyCount "73"]
[EventDate "2019.06.07"]
[EventType "swiss"]
[EventRounds "9"]
[EventCountry "GER"]
[SourceTitle "playchess.com"]
[Source "ChessBase"]
[SourceQuality "1"]
[TimeControl "40/5400+30:1800+30"]

1. e4 {[%emt 0:00:00]} c5 {[%emt 0:00:00]} 2. Nf3 {[%emt 0:00:00]} Nc6 {[%emt 0:00:00]} 3. c3 {[%emt 0:00:00]} Nf6 {[%emt 0:00:01]} 4. Qc2 {[%emt 0:01:21]} e5 {[%emt 0:06:53]} 5. Bc4 {[%emt 0:00:46]} Be7 {[%emt 0:04:58]} 6. O-O {[%emt 0:01:23]} O-O {[%emt 0:00:23]} 7. d3 {[%emt 0:00:30]} d6 {[%emt 0:01:35]} 8. Qb3 {[%emt 0:01:45]} Na5 {[%emt 0:01:27]} 9. Qa4 {[%emt 0:01:44]} Nxc4 {[%emt 0:01:19]} 10. Qxc4 {[%emt 0:00:37]} Be6 {[%emt 0:00:30]} 11. Qb5 {[%emt 0:01:29]} Qc7 {[%emt 0:02:19]} 12. Be3 {[%emt 0:04:39]} a6 {[%emt 0:00:27]} 13. Qa4 {[%emt 0:00:27]} Ng4 {[%emt 0:02:48]} 14. Re1 {[%emt 0:01:31]} Nxe3 15. Rxe3 {[%emt 0:00:59]} f5 {[%emt 0:04:21]} 16. Nbd2 {[%emt 0:01:37]} f4 {[%emt 0:00:54]} 17. Re2 {[%emt 0:01:02]} Rf6 {[%emt 0:03:04]} 18. Nh4 {[%emt 0:00:32]} g5 {[%emt 0:06:00]} 19. Nf5 {[%emt 0:00:40]} Bxf5 {[%emt 0:05:41]} 20. exf5 {[%emt 0:02:43]} Rxf5 {[%emt 0:01:56]} 21. Qc4+ {[%emt 0:00:33]} Kg7 {[%emt 0:04:05]} 22. Qe6 {[%emt 0:01:35]} Rf6 {[%emt 0:00:30]} 23. Qg4 {[%emt 0:00:34]} h6 {[%emt 0:04:13]} 24. h4 {[%emt 0:01:51]} Qc8 {[%emt 0:01:27]} 25. Qxc8 {[%emt 0:00:32]} Rxc8 {[%emt 0:00:16]} 26. h5 {[%emt 0:00:19]} Kf7 {[%emt 0:04:23]} 27. Nc4 {[%emt 0:01:22]} Bd8 {[%emt 0:01:59]} 28. Rc1 {[%emt 0:02:16]} b5 {[%emt 0:01:01]} 29. Nd2 {[%emt 0:01:31]} Re6 {[%emt 0:01:33]} 30. Ree1 {[%emt 0:01:57]} Bb6 {[%emt 0:02:24]} 31. Nf3 {[%emt 0:03:12]} Kf6 {[%emt 0:01:44]} 32. d4 {[%emt 0:03:15]} cxd4 {[%emt 0:08:39]} 33. cxd4 {[%emt 0:00:40]} Rxc1 {[%emt 0:00:48]} 34. dxe5+ {[%emt 0:00:13]} dxe5 {[%emt 0:01:52]} 35. Rxc1 {[%emt 0:00:21]} e4 {[%emt 0:00:18]} 36. Nh2 {[%emt 0:02:58]} e3 {[%emt 0:00:45]} 37. Kf1 {[%emt 0:01:54] normal} 0-1

[Event "GER-ch Youth ODJM 2019"]
[Site "Willingen"]
[Date "2019.06.10"]
[Round "3.6"]
[White "Schneider, Anna"]
[Black "Plum, Paul"]
[Result "1-0"]
[ECO "B90"]
[WhiteElo "1589"]
[BlackElo "1717"]
[Annotator "NA"]
[PlyCount "61"]
[EventDate "2019.06.07"]
[EventType "swiss"]
[EventRounds "9"]
[EventCountry "GER"]
[SourceTitle "playchess.com"]
[Source "ChessBase"]
[SourceQuality "1"]
[TimeControl "40/5400+30:1800+30"]

1. e4 {[%emt 0:00:00]} c5 {[%emt 0:00:00]} 2. Nf3 {[%emt 0:00:00]} d6 {[%emt 0:00:00]} 3. d4 {[%emt 0:00:00]} cxd4 {[%emt 0:00:00]} 4. Nxd4 {[%emt 0:00:00]} Nf6 {[%emt 0:00:00]} 5. Nc3 {[%emt 0:00:00]} a6 {[%emt 0:00:00]} 6. f3 {[%emt 0:00:10]} e6 {[%emt 0:00:24]} 7. Be3 {[%emt 0:00:16]} Be7 {[%emt 0:00:08]} 8. Qd2 {[%emt 0:00:06]} Nbd7 {[%emt 0:00:11]} 9. O-O-O {[%emt 0:00:14]} Qc7 {[%emt 0:00:24]} 10. Kb1 {[%emt 0:01:19]} b5 {[%emt 0:01:38]} 11. g4 {[%emt 0:00:15]} Ne5 {[%emt 0:03:43]} 12. g5 {[%emt 0:02:25]} Nfd7 {[%emt 0:01:39]} 13. h4 {[%emt 0:04:23]} Nb6 {[%emt 0:01:17]} 14. h5 {[%emt 0:02:22]} Nec4 {[%emt 0:00:15]} 15. Bxc4 {[%emt 0:00:16]} Nxc4 {[%emt 0:00:05]} 16. Qe1 {[%emt 0:00:45]} Nxe3 {[%emt 0:00:45]} 17. Qxe3 {[%emt 0:00:09]} Qc5 {[%emt 0:00:17]} 18. f4 {[%emt 0:01:07]} Bd7 {[%emt 0:01:57]} 19. Qf3 {[%emt 0:02:12]} Rc8 {[%emt 0:00:43]} 20. g6 {[%emt 0:03:33]} f6 {[%emt 0:00:40]} 21. e5 {[%emt 0:02:10]} b4 {[%emt 0:02:24]} 22. h6 {[%emt 0:05:51]} gxh6 {[%emt 0:02:50]} 23. g7 {[%emt 0:00:39]} Rg8 {[%emt 0:00:16]} 24. Qh5+ {[%emt 0:00:35]} Kd8 {[%emt 0:00:07]} 25. Qf7 {[%emt 0:00:43]} Kc7 {[%emt 0:00:10]} 26. Nxe6+ {[%emt 0:02:30]} Bxe6 {[%emt 0:00:13]} 27. Qxe7+ {[%emt 0:01:51]} Bd7 {[%emt 0:00:05]} 28. Rxd6 {[%emt 0:05:07]} bxc3 {[%emt 0:00:45]} 29. Rxd7+ {[%emt 0:00:24]} Kb6 {[%emt 0:00:53]} 30. Rb7+ {[%emt 0:00:39]} Ka5 {[%emt 0:00:32]} 31. b4+ {[%emt 0:00:37] normal} 1-0

[Event "GER-ch Youth ODJM 2019"]
[Site "Willingen"]
[Date "2019.06.10"]
[Round "3.6"]
[White "Foos, Vanessa"]
[Black "Moldovan, Tudor"]
[Result "1-0"]
[ECO "A45"]
[WhiteElo "1207"]
[BlackElo "1030"]
[Annotator "NA"]
[PlyCount "76"]
[EventDate "2019.06.07"]
[EventType "swiss"]
[EventRounds "9"]
[EventCountry "GER"]
[SourceTitle "playchess.com"]
[Source "ChessBase"]
[SourceQuality "1"]
[TimeControl "40/5400+30:1800+30"]

1. d4 {[%emt 0:00:00]} Nf6 {[%emt 0:02:05]} 2. Nc3 {[%emt 0:00:00]} e6 {[%emt 0:00:10]} 3. a3 {[%emt 0:00:19]} d5 {[%emt 0:00:10]} 4. Nf3 {[%emt 0:01:21]} Nbd7 {[%emt 0:01:21]} 5. Bf4 {[%emt 0:01:02]} Be7 {[%emt 0:00:28]} 6. Nb5 {[%emt 0:07:41]} e5 {[%emt 0:01:55]} 7. Bxe5 {[%emt 0:01:45]} Nxe5 {[%emt 0:00:31]} 8. dxe5 {[%emt 0:00:20]} Nd7 {[%emt 0:00:19]} 9. Qxd5 {[%emt 0:01:23]} c6 10. Nd6+ Bxd6 {[%emt 0:01:36]} 11. Qxd6 {[%emt 0:00:44]} Qe7 {[%emt 0:01:15]} 12. Qxe7+ {[%emt 0:00:01]} Kxe7 {[%emt 0:00:49]} 13. e4 {[%emt 0:02:53]} Re8 {[%emt 0:00:23]} 14. O-O-O {[%emt 0:05:13]} Kf8 {[%emt 0:00:20]} 15. Bc4 {[%emt 0:02:39]} Nxe5 {[%emt 0:01:17]} 16. Nxe5 {[%emt 0:02:20]} Rxe5 {[%emt 0:02:26]} 17. Rhe1 {[%emt 0:05:18]} b5 {[%emt 0:01:05]} 18. Bb3 {[%emt 0:01:57]} Bb7 {[%emt 0:03:18]} 19. Rd7 {[%emt 0:02:10]} Re7 {[%emt 0:00:43]} 20. Rxe7 {[%emt 0:03:42]} Kxe7 {[%emt 0:00:11]} 21. Rd1 {[%emt 0:02:13]} c5 {[%emt 0:01:37]} 22. Bxf7 {[%emt 0:00:04]} Bxe4 {[%emt 0:01:05]} 23. Re1 {[%emt 0:02:08]} Kxf7 {[%emt 0:01:47]} 24. Rxe4 {[%emt 0:00:15]} Kf6 {[%emt 0:01:02]} 25. Kd2 {[%emt 0:00:46]} Rd8+ {[%emt 0:00:54]} 26. Ke2 {[%emt 0:01:08]} g5 {[%emt 0:01:15]} 27. c4 {[%emt 0:12:29]} a6 {[%emt 0:02:57]} 28. cxb5 {[%emt 0:06:31]} axb5 {[%emt 0:00:34]} 29. Re3 {[%emt 0:01:18]} c4 {[%emt 0:00:50]} 30. Rf3+ {[%emt 0:02:09]} Kg6 {[%emt 0:00:44]} 31. b3 {[%emt 0:06:23]} Re8+ {[%emt 0:01:39]} 32. Kd2 {[%emt 0:02:21]} Rc8 {[%emt 0:02:22]} 33. bxc4 {[%emt 0:02:58]} Rxc4 {[%emt 0:00:22]} 34. Rc3 {[%emt 0:00:08]} Rf4 {[%emt 0:01:02]} 35. Ke3 {[%emt 0:00:21]} Rf5 {[%emt 0:01:59]} 36. Rc6+ {[%emt 0:03:45]} Kg7 37. g4 Re5+ {[%emt 0:01:36]} 38. Kf3 {[%emt 0:00:56]} Rd5 {[%emt 0:00:34] normal} 1-0

[Event "GER-ch Youth ODJM 2019"]
[Site "Willingen"]
[Date "2019.06.10"]
[Round "3.7"]
[White "Matthes, Benjamin"]
[Black "Maul, Maik Joel"]
[Result "1-0"]
[ECO "A06"]
[WhiteElo "1737"]
[BlackElo "1590"]
[Annotator "NA"]
[PlyCount "37"]
[EventDate "2019.06.07"]
[EventType "swiss"]
[EventRounds "9"]
[EventCountry "GER"]
[SourceTitle "playchess.com"]
[Source "ChessBase"]
[SourceQuality "1"]
[TimeControl "40/5400+30:1800+30"]

1. Nf3 {[%emt 0:00:00]} d5 {[%emt 0:00:00]} 2. d4 {[%emt 0:02:39]} Bf5 {[%emt 0:02:36]} 3. Bf4 {[%emt 0:04:43]} Nc6 {[%emt 0:01:59]} 4. e3 {[%emt 0:00:46]} e6 {[%emt 0:01:12]} 5. Bb5 {[%emt 0:03:43]} Bd6 {[%emt 0:00:32]} 6. Ne5 {[%emt 0:02:47]} Bxe5 {[%emt 0:00:32]} 7. Bxe5 {[%emt 0:00:02]} f6 {[%emt 0:00:09]} 8. Bf4 {[%emt 0:04:48]} Nge7 {[%emt 0:02:17]} 9. Nd2 {[%emt 0:15:55]} O-O {[%emt 0:03:41]} 10. O-O {[%emt 0:08:50]} e5 {[%emt 0:04:31]} 11. dxe5 {[%emt 0:04:27]} fxe5 {[%emt 0:00:37]} 12. Bg5 {[%emt 0:01:20]} Qd6 {[%emt 0:08:34]} 13. c4 {[%emt 0:10:29]} Qg6 {[%emt 0:04:35]} 14. Bh4 {[%emt 0:06:49]} Bd3 {[%emt 0:13:08]} 15. Re1 {[%emt 0:02:00]} dxc4 {[%emt 0:04:12]} 16. Bxc4+ {[%emt 0:05:42]} Bxc4 {[%emt 0:00:06]} 17. Nxc4 {[%emt 0:00:02]} Nf5 {[%emt 0:00:54]} 18. Bg3 {[%emt 0:01:50]} Nxg3 {[%emt 0:00:15]} 19. hxg3 {[%emt 0:00:01] normal} 1-0